Cogmind - Beta 14 @@@ ROGUE MODE // 2024.09.23 @ 13:48:28 Player: Kinga Result: Destroyed by S-10 Pest with Light Assault Rifle Performance ------------- Evolutions (0) 0 Regions Visited (2) 400 Robots Destroyed (20) 100 Value Destroyed (418) 418 Prototype IDs (0) 0 Alien Tech Used (0) 0 Bonus (0) 0 TOTAL SCORE: 918 Bonus ------- None Cogmind --------- Core Integrity 0/250 Matter 300/300 Energy 250/250 System Corruption 0% Temperature Cool (74) Movement Rolling (140) Ox4 Location -10/Mines Parts ------- > --- POWER (1) -------- Ion Engine > --- PROPULSION (2) --- Wheel Wheel > --- UTILITY (2) ------ Huge Storage Unit > --- WEAPON (2) ------- Particle Gun > --- INVENTORY (25) --- Ion Engine Ion Engine Light Ion Engine Light Ion Engine Compact Wheel Transport Network Coupler Small Laser Small Laser Light Assault Rifle Grenade Launcher Makeshift Spear Peak State ------------ > --- POWER ------------ Ion Engine > --- PROPULSION ------- Wheel Wheel > --- UTILITY ---------- Heat Sink Huge Storage Unit > --- WEAPON ----------- Small Laser Particle Gun > --- INVENTORY -------- Ion Engine Ion Engine Light Ion Engine Light Ion Engine Compact Wheel Transport Network Coupler Small Laser Small Laser Light Assault Rifle Grenade Launcher [Rating: 9] Favorites ----------- Power Light Ion Engine Engine Light Ion Engine Propulsion Light Treads Treads Light Treads Wheel Wheel Utility Huge Storage Unit Device Heat Sink Storage Huge Storage Unit Protection Light Armor Plating Weapon Light Assault Rifle Energy Gun EM Pulse Gun Ballistic Gun Light Assault Rifle Build | -11 -10 -10 ------- Run | Yrd Mat Min Slots Evolved . | . . . Power . | . . . Propulsion . | . . . Utility . | . . . Weapon . | . . . Parts Attached 18 | 6 12 . Power 2 | 1 1 . Engine 2 | 1 1 . Core . | . . . Reactor . | . . . Propulsion 5 | 2 3 . Treads 3 | 2 1 . Leg . | . . . Wheel 2 | . 2 . Hover . | . . . Flight . | . . . Utility 4 | 1 3 . Device 1 | . 1 . Storage 2 | 1 1 . Processor . | . . . Hackware . | . . . Protection 1 | . 1 . Artifact . | . . . Weapon 7 | 2 5 . Energy Gun 4 | 1 3 . Energy Cannon . | . . . Ballistic Gun 3 | 1 2 . Ballistic Cannon . | . . . Launcher . | . . . Special Weapon . | . . . Impact Weapon . | . . . Slashing Weapon . | . . . Piercing Weapon . | . . . Special Melee Weapon . | . . . Unidentified Prototypes . | . . . Parts Lost 12 | . 10 2 Power 1 | . 1 . Propulsion 3 | . 3 . Utility 2 | . 1 1 Weapon 6 | . 5 1 Highest Loss Streak 10 | . 10 2 To Critical Strikes . | . . . Average Slot Usage (%) 92 | . 91 96 Engine 13 | . 13 14 Treads 22 | . 25 . Wheel 5 | . 1 28 Device 2 | . . 11 Storage 14 | . 14 14 Protection 6 | . 7 . Energy Gun 16 | . 14 27 Ballistic Gun 11 | . 12 . Peak Build Rating 9 | 6 8 9 Average Rating 6 | 4 6 8 On Entrance 4 | . 6 8 Naked Turns . | . . . Heaviest Build 90 | 11 90 90 Greatest Support 40 | 40 40 20 Greatest Overweight (x) 4 | . 4 4 Average Overweight (x) 2 | . 2 4 Largest Inventory Capacity 25 | 8 25 25 Average Capacity 23 | 6 24 25 Most Carried 12 | 4 12 11 Average Carried 8 | 2 8 9 Final Capacity 25 | 8 25 25 Final Carried 11 | 4 9 11 Class Distribution -------------------- 85% | Mutant 14% | Scavenger-Mutant Dominant Class ---------------- Mutant | -10/Materials Scavenger-Mutant | -10/Mines Resources | -11 -10 -10 ----------- Run | Yrd Mat Min Matter Collected 390 | 260 130 . Remotely . | . . . Salvage Created 562 | . 496 66 Parts 41 | . 36 5 Haulers Intercepted 1 | . 1 . Recyclers Shooed . | . . . Parts Field Recycled . | . . . Retrieved Matter . | . . . Parts Self-Destructed . | . . . Prevented . | . . . Kills | -11 -10 -10 ------- Run | Yrd Mat Min Combat Hostiles Destroyed 17 | . 14 3 Guns 14 | . 11 3 AOE 2 | . 2 . Classes Destroyed 5 | . 5 . Worker 1 | . 1 . Hauler 1 | . 1 . Watcher 1 | . 1 . Swarmer 8 | . 6 2 Grunt 9 | . 8 1 Best Kill Streak 4 | . 4 2 Combat Bots Only 3 | . 3 2 Max Kills in Single Turn 2 | . 2 1 Gunslinging . | . . . Exploded 1 | . 1 . Melee . | . . . Uniques/NPCs Destroyed . | . . . Combat | -11 -10 -10 -------- Run | Yrd Mat Min Hostile Shots Fired 153 | . 134 19 Missed 34 | . 32 2 Damage Taken 1384 | . 1171 213 Core 256 | . 183 73 Absorbed by Shields . | . . . Core Remaining (%) 100 | 100 . . Volleys Fired 77 | . 65 12 Largest 2 | . 2 2 Hottest 105 | . 90 105 Shots Fired 137 | . 113 24 Gun 137 | . 113 24 Cannon . | . . . Launcher . | . . . Special . | . . . Kinetic 55 | . 55 . Thermal 58 | . 34 24 Explosive . | . . . Electromagnetic 24 | . 24 . Robot Hit Streak 21 | . 17 21 Robot Miss Streak 6 | . 6 3 Penetration Max . | . . . Secondary Targets 3 | . 3 . Max Gunslinging Chain 1 | . 1 . Shots Hit Robots 85 | . 70 15 Core Hits 30 | . 26 4 Critical Kills . | . . . Critical Parts Destroyed . | . . . Critical Strikes 3 | . 3 . Burn 3 | . 3 . Melee Attacks . | . . . Impact . | . . . Slashing . | . . . Piercing . | . . . Sneak Attacks . | . . . Combat Hostiles . | . . . Follow-up Attacks . | . . . Damage Inflicted 1165 | . 964 201 Guns 969 | . 768 201 Cannons . | . . . Explosions 169 | . 169 . Melee . | . . . Ramming 27 | . 27 . Kinetic 269 | . 269 . Thermal 686 | . 485 201 Explosive . | . . . Electromagnetic 183 | . 183 . Impact . | . . . Slashing . | . . . Piercing . | . . . Highest Corruption . | . . . Average Corruption . | . . . Corruption Purged . | . . . Corruption Blocked . | . . . Overload Shots . | . . . Overflow Damage . | . . . Projectiles . | . . . Explosions . | . . . Melee . | . . . Knockbacks . | . . . Impact . | . . . Kinetic . | . . . Secondary . | . . . Self-Inflicted Damage 31 | . 31 . Shots 2 | . 2 . Rammed 7 | . 7 . Targets Rammed 7 | . 7 . Kicked . | . . . Crushed . | . . . Highest Temperature 266 | . 266 225 Average Temperature 90 | . 95 73 Received Heat Transfer 693 | . 573 120 Effects 1 | . 1 . Energy Bleed 1 | . 1 . Siege Activations . | . . . Robots Corrupted . | . . . Combat Hostiles . | . . . Parts Fried . | . . . Impact Corruptions . | . . . Robots Melted 1 | . 1 . Combat Hostiles 1 | . 1 . Parts Melted 3 | . 2 1 Heat Transferred 1762 | . 1291 471 Parts Sabotaged . | . . . Parts Stolen . | . . . Parts Stripped . | . . . Power Chain Reactions 2 | . 2 . Alert | -11 -10 -10 ------- Run | Yrd Mat Min Peak Influence 204 | . 204 138 Initial 38 | . . 38 Average 51 | . 49 88 Maximum Alert Level 1 | . 1 . Low Security (%) 99 | 100 99 100 Level 1 . | . . . Level 2 . | . . . Level 3 . | . . . Level 4 . | . . . Level 5 . | . . . High Security . | . . . Max Security . | . . . Squads Dispatched 3 | . 3 . Investigation 2 | . 2 . Extermination . | . . . Reinforcement 1 | . 1 . Assault . | . . . Garrison . | . . . Intercept . | . . . Searches Triggered . | . . . Construction Impeded . | . . . Haulers Reinforced . | . . . Active Scanning Responses . | . . . Cargo Convoy Interrupts . | . . . Stealth | -11 -10 -10 --------- Run | Yrd Mat Min Distress Signals 4 | . 4 . Communications Jammed . | . . . Distress Signals . | . . . Times Spotted 29 | . 21 8 Peak Tracking Total 9 | . 9 3 Tactical Retreats 4 | . 3 1 Traps | -11 -10 -10 ------- Run | Yrd Mat Min Traps Triggered 1 | . 1 . Indirectly . | . . . Trap Hack Attempts . | . . . Triggered . | . . . Disarmed . | . . . Reprogrammed . | . . . Reused . | . . . Traps Extracted . | . . . Installed . | . . . Triggered . | . . . Machines | -11 -10 -10 ---------- Run | Yrd Mat Min Machines Disabled . | . . . Max in Single Turn . | . . . Machines Repaired . | . . . Machines Dismantled . | . . . Machines Sabotaged . | . . . Overloaded Fab Kills . | . . . Hacking | -11 -10 -10 --------- Run | Yrd Mat Min Machines Accessed 1 | . 1 . Terminals . | . . . Fabricators . | . . . Repair Stations . | . . . Recycling Units 1 | . 1 . Scanalyzers . | . . . Garrison Access . | . . . Total Hacks 3 | . 3 . Successful 1 | . 1 . Failed 2 | . 2 . Catastrophic 1 | . 1 . Database Lockouts . | . . . Manual . | . . . Terminals . | . . . Fabricators . | . . . Repair Stations . | . . . Recycling Units 3 | . 3 . Scanalyzers . | . . . Garrison Access . | . . . Terminal Hacks . | . . . Fabricator Hacks . | . . . Repair Station Hacks . | . . . Recycling Unit Hacks 1 | . 1 . Retrieve Components 1 | . 1 . Scanalyzer . | . . . Garrison Access Hacks . | . . . Unauthorized Hacks . | . . . Terminals . | . . . Fabricators . | . . . Repair Stations . | . . . Recycling Units . | . . . Scanalyzers . | . . . Garrison Access . | . . . Data Cores Recovered . | . . . Used . | . . . Hacking Detections 1 | . 1 . Full Trace Events 1 | . 1 . Feedback Events . | . . . Feedback Blocked . | . . . Robot Schematics Acquired . | . . . Robots Built . | . . . Authchips . | . . . Time . | . . . Total Robot Build Rating . | . . . Part Schematics Acquired . | . . . Parts Built . | . . . Authchips . | . . . Time . | . . . Total Part Build Rating . | . . . Parts Repaired . | . . . Time . | . . . Parts Recycled . | . . . Recycled Matter . | . . . Retrieved Matter . | . . . Retrieved Components 8 | . 8 . Parts Scanalyzed . | . . . Part Schematics Acquired . | . . . Parts Damaged . | . . . Bothacking | -11 -10 -10 ------------ Run | Yrd Mat Min Used RIF Installer . | . . . Robots Hacked . | . . . Non-combat . | . . . Combat . | . . . Robot Hacks Applied . | . . . Relay Couplers Released . | . . . Fabnet Peak Effective % . | . . . Robots Rewired . | . . . Allies Hacked . | . . . Hacks Repelled . | . . . Allies | -11 -10 -10 -------- Run | Yrd Mat Min Total Allies . | . . . Largest Group . | . . . Highest-Rated Group . | . . . Highest-Rated Ally . | . . . Total Orders . | . . . Ally Attacks . | . . . Total Damage . | . . . Kills . | . . . Allies Corrupted . | . . . Allies Melted . | . . . Intel | -11 -10 -10 ------- Run | Yrd Mat Min Robot Analysis Total . | . . . Derelict Logs Recovered . | . . . Drone Launches . | . . . Drone Recoveries . | . . . Exploration | -11 -10 -10 ------------- Run | Yrd Mat Min Turns Passed 1165 | 66 949 150 Spaces Moved 375 | 36 259 80 Core 3 | 3 . . Treads 257 | 33 224 . Legs . | . . . Wheels 115 | . 35 80 Hover . | . . . Flight . | . . . Fastest Speed 50 | 50 140 140 Average Speed 238 | 150 281 140 Slowest Speed 320 | 160 320 140 Overloaded Moves . | . . . Propulsion Burnouts . | . . . Robots Hopped . | . . . Cave-ins Triggered . | . . . Exploration Rate (%) 23 | 3 42 26 Regions Visited 2 Branch Regions 1 Pre-discovered Areas . | . . . Known Exits Taken . | . . . Unknown Exits Taken 2 | 1 1 . Scrap Searched . | . . . Spaces Dug . | . . . Terrain Destroyed 4 | . 4 . Melee . | . . . Projectile . | . . . AOE 4 | . 4 . Terrain Rammed . | . . . Walls Destroyed . | . . . Machines Disabled . | . . . Actions | -11 -10 -10 --------- Run | Yrd Mat Min Total 499 | 45 360 94 Wait 4 | . 4 . Move 373 | 35 258 80 Hop . | . . . Pick Up 18 | 4 12 2 Fast Attach 12 | 6 6 . Attach 6 | . 6 . Detach . | . . . Swap . | . . . Drop 2 | . 2 . Fire 77 | . 65 12 Melee . | . . . Ram . | . . . Kick . | . . . Crush 7 | . 7 . Escape Stasis . | . . . Rewire . | . . . Trap . | . . . Miscellaneous . | . . . Route ------- -11/Scrapyard -10/Materials -10/Mines History --------- Turn | Location | Event 12 | -11/Scrapyard | Discovered new exit (range 15) 67 | -11/Scrapyard | Entered Materials 317 | -10/Materials | Build established: Mutant 790 | -10/Materials | Discovered new exit (range 13) 902 | -10/Materials | Core integrity fell below 50% 986 | -10/Materials | Lost 10 parts (1p3n1u5w) 1016 | -10/Materials | Entered Mines 1048 | -10/Mines | Met a Derelict bent on vengeance 1116 | -10/Mines | Core integrity fell below 20% 1126 | -10/Mines | A weapon hastily lodged in a ceiling crevice suddenly fell to the ground 1166 | -10/Mines | Destroyed by S-10 Pest with Light Assault Rifle Last Messages --------------- Something is scanning the area. 01066_ Flight Unit melted. 01066_ S-10 Pest destroyed. 01071_ Acquired Lgt. Assault Rifle. 01079_ K-01 Serf cleans the Seismic Survey Station. 01082_ Connecting with Terminal... 01082_ Current location identified: Mines 01085_ K-01 Serf cleans the Seismic Survey Station. 01106_ S-10 Pest destroyed. 01119_ G-34 Mercenary destroyed. 01122_ K-01 Serf collects debris. 01126_ A Mak. Spear has been hastily shoved under some rubble with a note attached: "Stab them where it hurts!" 01127_ K-01 Serf collects debris. 01132_ Heat Sink destroyed. 01132_ R-06 Scavenger collects Flight Unit. 01138_ Acquired Mak. Spear. 01145_ R-06 Scavenger collects Aluminum Leg. 01156_ Critical hit (Burn: +37). 01158_ Sml. Laser destroyed. Map ----- +----------------------------------------------------+ | ????????????????? ???????????????????????????????? | | ????????????????? ???????????????????????????????? | | ????????????????? ???????????????????????????????? | | ?????????###????? ???????????????????????????????? | | ????????? #????# #??????????????????????????????? | | ?????????# #????# #??????????????????????????????? | | ?????????# #????# #######???????? ??????????????? | | ?????????# #????# # #???????? ??????????????? | | ?????????# #????# # """ #???????? ??????????????? | | ?????????# #????# # """ ###?????? ??????????????? | | ???????### ###?## # """ #?????? ??????????????? | | ?####### #?# # #?????? #??????????????? | | ?# """ #?# """ # #?????? #??????????????? | | ?# ##### """ ### ## """ # #?????# #??????????????? | | ## #???# """ % ## """ # #?????# #??????????????? | | #???# """ ###### # #?????# #??????????????? | | ## #???# #????###T### #???###%#??????????????? | | ?# #???## ###??????###?# #??## ##?????????????? | | ?# #????# #????######### #??# #???? ##??????? | | ?# #????# #??# [ % #### ##?? #??????? | | ## #????# #????######### ## #??????? | | ## #????# #????????????# #### ##?????? | | #????# #?????##?????# #??# #?????? | | ####????# #?????# #### #??# #????? | | ?????????? #??????# #### ## ?? | | ?????????? ???????# @ # ## ##??? ?? | | ?????????? ?# # #?###??????#### ?? | | ?????????? s ### #????????????????? | | ???????????## ### #??######????????????????? | | ????????????# ?????####?????????????????????????? | | ?????????????????????????????????????????????????? | | ?????????????????????????????????????????????????? | | ?????????????????????????????????????????????????? | | ?????????????????????????????????????????????????? | | ?????????????????????????????????????????????????? | | ?????????????????????????????????????????????????? | | | | | | | | | | | | | | | | | | | | | | | | | | | | | +----------------------------------------------------+ Best States ------------- Heat Dissipation 35 Energy Generation 10 Energy Capacity 250 Matter Stores 300 Matter Capacity 300 Sight Range 16 Terrain Scan Density 10 Armor Coverage 150 Evasion (%) 40 Recoil Reduction 2 Item Schematics ----------------- None Robot Schematics ------------------ None Fabricated ------------ Nothing Alien Tech Used ----------------- None Achievements -------------- None Challenges ------------ None Game ------ Seed VisualGuidanceFirepult Manual? 0 Play Time 00:06:08 Cumulative 89.2 hours Start 2024.09.23 @ 13:43:18 End 2024.09.23 @ 13:48:28 Sessions 1 Manual Loads 0 Difficulty Rogue Special Mode None Game No. 103 Rogue 99 Adventurer 0 Explorer 4 Win Type - Total 6 Types 4/0/0/2/0/0/0/0/0 Lore% 39 Gallery% 61 Achievement% 55 Wizard Run 0 Options --------- Layout 0 ASCII 0 Keyboard 0 Movement Numpad Keybinds 0 Fullscreen 2 Font 18/SmallcapsGlow Map View 76x50 Zoom Use 0% Tactical HUD 1 Map Filters NONE Filters NONE Steam 1 RUN: 82d6ef15-58a5-407e-9822-92a8ec7c113d